bitfinex/quotes_ETHUSD_20230113
["timestamp","ask_amount","ask_price","bid_price","bid_amount"]
[1673642510932,17.86365816,1423.7,1423.6,4.32e-06]
[1673642511192,3.066,1423.7,1423.6,4.32e-06]
[1673642511499,3.0,1423.7,1423.6,4.32e-06]
[1673642512137,10.02395,1423.7,1423.6,4.32e-06]
[1673642512316,3.37340895,1423.7,1423.6,1.54719488]
[1673642512507,0.066,1423.8,1423.7,1.27226736]
[1673642512756,7.08706,1424.3,1423.7,5.61169897]
[1673642512927,14.10812,1424.3,1423.8,1.74228915]
[1673642513134,4.31503872,1424.2,1423.8,1.74228915]
[1673642513413,4.31503872,1424.2,1423.9,1.03896962]
[1673642513624,3.60633272,1424.2,1423.9,1.03896962]
[1673642514288,3.60633272,1424.2,1423.9,1.7417831]
[1673642514515,3.60633272,1424.2,1424.0,1.7417831]
[1673642514724,3.60633272,1424.2,1423.9,1.03896962]
[1673642514983,3.60633272,1424.2,1423.9,2.78067931]
[1673642515143,3.60633272,1424.2,1424.0,1.74170969]
[1673642515508,3.60633272,1424.2,1423.8,2.66314246]
[1673642515509,10.62781272,1424.2,1423.8,2.66314246]
[1673642515658,10.69381272,1424.2,1423.9,2.59714246]
[1673642515987,10.69381272,1424.2,1424.0,2.78070805]
[1673642516180,10.69381272,1424.2,1423.9,1.55817284]
[1673642516181,10.69381272,1424.2,1423.9,1.10496962]
[1673642516387,10.69381272,1424.2,1424.0,1.74179907]
[1673642516603,10.69381272,1424.2,1423.9,1.03896962]
[1673642516604,3.60633272,1424.1,1423.9,1.03896962]
[1673642516811,9.15896227,1424.2,1423.9,1.03896962]
[1673642517021,9.15896227,1424.2,1423.9,4.33890351]
[1673642517022,12.76529499,1424.2,1423.9,4.33890351]
[1673642517230,0.066,1424.2,1424.0,2.78073067]
[1673642517505,3.0,1424.3,1424.1,1.74176105]
[1673642517714,6.60633272,1424.3,1424.0,1.03896962]
[1673642517860,6.67233272,1424.3,1423.9,3.81196962]
[1673642518215,8.46434699,1424.3,1424.0,1.74176871]
[1673642518597,15.48533699,1424.3,1424.0,1.74176871]
[1673642519068,3.60633272,1424.2,1424.0,1.74176871]
[1673642519381,3.83633272,1424.1,1423.8,1.10496962]
[1673642519554,5.62431599,1424.1,1423.9,1.7419193]
[1673642519768,5.62431599,1424.1,1423.8,1.03896962]
[1673642519769,12.71259599,1424.1,1423.8,1.03896962]
[1673642520012,12.71259599,1424.1,1423.8,1.74198585]
[1673642520233,3.60633272,1424.0,1423.8,1.74198585]
[1673642520380,3.60633272,1424.0,1423.7,2.40636925]
[1673642520381,10.62886272,1424.0,1423.7,2.40636925]
[1673642520597,0.36063327,1423.9,1423.7,1.30139963]
[1673642520809,3.60633272,1423.8,1423.7,1.27226736]
[1673642521015,17.88323272,1423.8,1423.7,1.27226736]
[1673642521322,17.94923272,1423.8,1423.7,1.27226736]
[1673642521482,20.48253132,1423.8,1423.7,1.27226736]
[1673642521868,13.45908132,1423.8,1423.7,1.27226736]
[1673642522331,20.48253132,1423.8,1423.7,1.27226736]
[1673642522920,24.70953132,1423.8,1423.6,4.32e-06]
[1673642523133,17.65423272,1423.7,1423.6,4.32e-06]
[1673642523369,21.42363085,1423.7,1423.6,4.32e-06]
[1673642523918,21.42363085,1423.7,1423.6,1.74241092]
[1673642524085,21.42363085,1423.7,1423.6,4.32e-06]
[1673642525329,0.066,1423.7,1423.6,4.32e-06]
[1673642525667,3.60633272,1423.7,1423.6,4.32e-06]
[1673642525856,10.63028272,1423.7,1423.6,4.32e-06]
[1673642526058,10.69628272,1423.7,1423.6,4.32e-06]
[1673642526739,20.72023272,1423.7,1423.6,4.32e-06]
[1673642527052,6.90233272,1423.7,1423.6,4.32e-06]
[1673642527264,3.90233272,1423.7,1423.6,4.32e-06]
[1673642527489,10.86028272,1423.7,1423.6,4.32e-06]
[1673642527645,10.92628272,1423.7,1423.6,4.32e-06]
[1673642528187,3.90233272,1423.7,1423.6,4.32e-06]
[1673642528444,4.92891199,1423.7,1423.6,1.74234271]
[1673642528596,4.92891199,1423.7,1423.6,4.32e-06]
[1673642528597,0.23,1423.7,1423.6,4.32e-06]
[1673642528862,3.0,1423.8,1423.6,4.32e-06]
[1673642529120,6.60633272,1423.8,1423.6,4.32e-06]
[1673642529334,6.67233272,1423.8,1423.6,1.03897394]
[1673642529558,7.79832932,1423.8,1423.6,1.03897394]
[1673642529891,6.67233272,1423.8,1423.6,2.78131233]
[1673642530203,20.71944272,1423.8,1423.6,4.32e-06]
[1673642530411,17.88423272,1423.7,1423.6,4.32e-06]
[1673642530623,20.95023272,1423.7,1423.6,4.32e-06]
[1673642532104,25.17723272,1423.7,1423.6,4.32e-06]
[1673642532261,29.79730099,1423.7,1423.6,4.32e-06]
[1673642533203,11.52240099,1423.7,1423.6,4.32e-06]
[1673642533632,6.90233272,1423.7,1423.6,4.32e-06]
[1673642534204,6.90233272,1423.7,1423.6,2.78137629]
[1673642534416,6.90233272,1423.7,1423.6,1.74240667]
[1673642535430,3.066,1423.7,1423.6,1.74240667]
[1673642535642,17.47303327,1423.9,1423.6,1.74240667]
[1673642535961,17.47303327,1423.9,1423.6,4.32e-06]
[1673642535962,5.35363605,1423.8,1423.6,4.32e-06]
[1673642536295,5.41963605,1423.8,1423.6,1.03897394]
[1673642536624,12.44313605,1423.8,1423.6,1.03897394]
[1673642536941,1.2443136,1423.7,1423.6,2.78124343]
[1673642537248,5.41963605,1423.8,1423.7,0.77906699]
[1673642537408,6.67233272,1423.8,1423.7,2.52133648]
[1673642538088,6.67233272,1423.8,1423.7,3.5603061]
[1673642538404,3.066,1423.8,1423.7,3.5603061]
[1673642538587,3.066,1423.9,1423.7,2.52133648]
[1673642538795,6.60633272,1423.9,1423.7,0.77906699]
[1673642539148,6.67233272,1423.9,1423.7,0.77906699]
[1673642539456,9.44182399,1423.9,1423.7,1.81803661]
[1673642539832,3.83633272,1423.8,1423.7,0.77906699]
[1673642540069,20.88323272,1423.8,1423.7,0.77906699]
[1673642540298,20.94923272,1423.8,1423.7,0.77906699]
[1673642540456,20.94923272,1423.8,1423.7,2.52139915]
[1673642540676,25.30600012,1423.8,1423.7,2.52139915]
[1673642541352,25.30600012,1423.8,1423.7,0.77906699]
[1673642541944,31.10900012,1423.8,1423.7,0.77906699]
[1673642542191,58.96521342,1423.8,1423.7,6.99e-06]
[1673642543134,59.67377743,1423.8,1423.7,6.99e-06]
[1673642543449,59.67377743,1423.8,1423.3,0.02735902]
[1673642543450,2.5,1423.6,1423.3,0.02735902]
[1673642543667,2.5,1423.4,1423.3,9.02e-06]
[1673642544015,40.46409799,1423.4,1423.3,9.02e-06]
[1673642544146,40.53009799,1423.4,1423.3,9.02e-06]
[1673642544341,44.75709799,1423.4,1423.3,9.02e-06]
[1673642546221,45.465662,1423.4,1423.3,9.02e-06]
[1673642547511,31.92866799,1423.4,1423.3,9.02e-06]
[1673642547701,24.90323799,1423.4,1423.3,9.02e-06]
[1673642548379,38.95409799,1423.4,1423.3,9.02e-06]
[1673642548548,43.18109799,1423.4,1423.3,9.02e-06]
[1673642549866,29.13023799,1423.4,1423.3,9.02e-06]
[1673642550266,43.18109799,1423.4,1423.3,9.02e-06]
[1673642553139,24.67323799,1423.4,1423.3,9.02e-06]
[1673642554233,31.69866799,1423.4,1423.3,9.02e-06]
[1673642554565,38.72409799,1423.4,1423.3,9.02e-06]
[1673642554861,38.95409799,1423.4,1423.3,9.02e-06]
[1673642555323,43.18109799,1423.4,1423.3,9.02e-06]
[1673642555514,51.77552799,1423.4,1423.3,9.02e-06]
[1673642556317,30.69923799,1423.4,1423.3,9.02e-06]
[1673642556630,24.90323799,1423.4,1423.3,9.02e-06]
[1673642556991,38.95409799,1423.4,1423.3,9.02e-06]
[1673642557395,45.97952799,1423.4,1423.3,9.02e-06]
[1673642557589,0.066,1423.4,1423.3,9.02e-06]
[1673642557792,14.0,1423.5,1423.3,9.02e-06]
[1673642558003,17.67233272,1423.5,1423.3,9.02e-06]
[1673642558714,17.67233272,1423.5,1423.3,15.79449329]
[1673642558715,0.066,1423.5,1423.3,15.79449329]
[1673642558897,14.11424,1423.7,1423.3,1.63800902]
[1673642559052,10.63079272,1423.6,1423.3,1.57200902]
[1673642559271,3.60633272,1423.5,1423.3,9.02e-06]
[1673642559486,3.60633272,1423.5,1423.3,1.74266601]
[1673642559957,0.066,1423.6,1423.3,9.80755563]
[1673642560267,24.68112272,1423.5,1423.3,0.06600902]
[1673642560429,3.60633272,1423.4,1423.3,9.02e-06]
[1673642560628,10.86176272,1423.4,1423.3,9.02e-06]
[1673642560842,10.92776272,1423.4,1423.3,9.02e-06]
[1673642561313,19.74846199,1423.4,1423.3,9.02e-06]
[1673642561472,26.77389199,1423.4,1423.1,1.06422166]
[1673642561683,3.60633272,1423.3,1423.2,1.74282745]
[1673642561926,13.30964192,1423.3,1423.2,1.74282745]
[1673642562255,13.37564192,1423.3,1423.0,23.00393475]
[1673642562467,10.63274272,1423.2,1423.1,1.74290498]
[1673642562680,0.066,1423.2,1423.1,1.74290498]
[1673642562832,16.7952292,1423.3,1423.0,11.09258999]
[1673642563047,0.066,1423.3,1423.1,4.24597896]
[1673642563296,3.0,1423.5,1423.2,3.19800934]
[1673642563480,17.066,1423.6,1423.2,1.566]
[1673642563481,14.066,1423.6,1423.2,1.566]
[1673642563704,3.60633272,1423.5,1423.2,9.63137962]
[1673642563915,3.60633272,1423.5,1423.3,1.63174254]
[1673642564115,3.60633272,1423.5,1423.2,8.61766204]
[1673642564521,0.066,1423.6,1423.2,22.67048204]
[1673642564887,10.02417,1423.7,1423.3,3.20663205]
[1673642564888,17.11422,1423.7,1423.3,3.20663205]
[1673642565048,10.69631272,1423.7,1423.4,0.32066321]
[1673642565263,17.72055272,1423.7,1423.4,0.32066321]
[1673642565515,24.74479272,1423.7,1423.3,2.63922166]
[1673642565688,24.74479272,1423.7,1423.4,1.63164574]
[1673642566100,17.72055272,1423.7,1423.4,1.63164574]
[1673642566997,0.066,1423.7,1423.4,11.27195536]
[1673642567149,21.6588,1423.9,1423.5,3.19764574]
[1673642567150,21.7248,1423.9,1423.5,3.19764574]
[1673642567364,21.7248,1423.9,1423.6,1.63108902]
[1673642567365,3.67233272,1423.9,1423.6,1.63108902]
[1673642567618,3.60633272,1423.9,1423.6,15.67983902]
[1673642567934,3.60633272,1423.9,1423.6,14.07400204]
[1673642568164,30.436,1424.0,1423.7,1.576]
[1673642568309,0.066,1424.0,1423.7,10.23038923]
[1673642568513,43.64976055,1424.2,1423.7,8.62512204]
[1673642568514,50.73757055,1424.2,1423.7,8.62512204]
[1673642568728,3.60633272,1424.1,1423.7,8.62512204]
[1673642569562,3.60633272,1424.1,1423.7,15.64907204]
[1673642570021,0.22931055,1424.2,1423.7,15.64907204]
[1673642570245,3.76964327,1424.2,1423.7,15.64907204]
[1673642570616,3.76964327,1424.2,1423.8,1.62999549]
[1673642571071,3.76964327,1424.2,1423.8,8.65324549]
[1673642571293,3.76964327,1424.2,1423.8,0.02525204]
[1673642571294,7.18507055,1424.2,1423.8,0.02525204]
[1673642571529,21.29431055,1424.2,1423.7,8.62512204]
[1673642571667,24.90064327,1424.2,1423.7,1.60125204]
[1673642571875,24.90064327,1424.2,1423.7,1.576]
[1673642572747,3.60633272,1424.1,1423.7,1.576]
[1673642572974,13.11868705,1424.1,1423.7,1.576]
[1673642573191,20.20697705,1424.1,1423.7,1.576]
[1673642573609,27.22926705,1424.1,1423.7,1.576]
[1673642575349,27.17926705,1424.1,1423.7,1.576]
[1673642575806,3.60633272,1424.0,1423.7,1.576]
[1673642576014,6.32925942,1424.0,1423.7,1.576]
[1673642576231,13.41774942,1424.0,1423.7,1.576]
[1673642577523,20.44023942,1424.0,1423.7,1.576]
[1673642580293,16.8339067,1424.0,1423.7,1.576]
[1673642580519,0.066,1424.0,1423.7,8.59966]
[1673642580741,7.0225,1424.0,1423.7,8.62491204]
[1673642580966,7.0885,1424.0,1423.7,8.62491204]
[1673642581204,0.066,1424.0,1423.7,22.67281204]
[1673642581373,0.066,1424.1,1423.8,1.62953939]
[1673642581559,3.60633272,1424.1,1423.8,1.62953939]
[1673642581759,3.60633272,1424.1,1423.9,14.04592]
[1673642581968,3.60633272,1424.1,1423.9,14.07117204]
[1673642582242,0.22931055,1424.2,1423.9,15.64717204]
[1673642582447,0.17531055,1424.2,1424.0,2.5]
[1673642582770,0.16331055,1424.2,1424.1,1.576]
[1673642582974,0.16331055,1424.2,1424.0,1.574]
[1673642583138,14.20629055,1424.2,1423.9,1.60125204]
[1673642583353,7.25080055,1424.2,1423.9,1.576]
[1673642583809,0.22931055,1424.2,1423.9,1.576]
[1673642583984,0.16331055,1424.2,1423.9,1.576]
[1673642584181,0.16331055,1424.2,1423.9,8.59889]
[1673642584391,0.16331055,1424.2,1424.1,1.576]
[1673642584592,0.16331055,1424.2,1424.1,29.66388]
[1673642584971,0.16331055,1424.2,1424.1,34.85746476]
[1673642585137,30.62900296,1424.6,1424.2,2.57271463]
[1673642585328,30.62900296,1424.6,1424.5,1.576]
[1673642585329,0.25900296,1424.6,1424.5,1.576]
[1673642585615,0.19300296,1424.6,1424.5,1.576]
[1673642586009,0.19300296,1424.6,1424.5,8.596]
[1673642586232,0.19300296,1424.6,1424.5,8.62125204]
[1673642586384,0.19300296,1424.6,1424.5,15.64125204]
[1673642586933,0.19300296,1424.6,1424.5,22.66125204]
[1673642587802,0.19300296,1424.6,1424.5,15.64125204]
[1673642587989,0.19300296,1424.6,1424.5,1.60125204]
[1673642588171,0.19300296,1424.6,1424.4,7.04721002]
[1673642588534,0.19300296,1424.6,1424.5,1.576]
[1673642588751,0.19300296,1424.6,1424.5,15.616]
[1673642589030,0.19300296,1424.6,1424.5,22.66125204]
[1673642589116,0.19300296,1424.6,1424.5,15.64125204]
[1673642589660,0.19300296,1424.6,1424.5,22.66125204]
[1673642591209,0.1946398,1425.0,1424.5,27.84358476]
[1673642591423,0.1946398,1425.0,1424.6,3.60633272]
[1673642591748,0.1946398,1425.0,1424.7,31.68204272]
[1673642591955,0.1946398,1425.0,1424.7,31.70729476]
[1673642592193,0.1946398,1425.0,1424.9,1.576]
[1673642592484,0.1946398,1425.0,1424.9,9.00163]
[1673642592700,0.1946398,1425.0,1424.9,16.04491204]
[1673642592909,0.1946398,1425.0,1424.9,2.00885204]
[1673642593235,0.1946398,1425.0,1424.8,1.576]
[1673642593896,0.1946398,1425.0,1424.8,8.59447]
[1673642594051,0.1946398,1425.0,1424.8,8.61972204]
[1673642594685,0.1946398,1425.0,1424.8,21.08076204]
[1673642595686,0.1946398,1425.0,1424.8,22.65676204]
[1673642595855,0.1946398,1425.0,1424.9,1.572]
[1673642596060,0.1946398,1425.0,1424.9,22.62609]
[1673642596383,0.1946398,1425.0,1424.9,26.25767476]
[1673642597264,0.1946398,1425.0,1424.9,26.26167476]
[1673642597628,9.8e-06,1425.0,1424.9,26.26167476]
[1673642597877,0.21146787,1425.1,1425.0,1.561]
[1673642598050,0.21146787,1425.1,1425.0,30.31095272]
[1673642598405,0.21146787,1425.1,1425.0,30.33620476]
[1673642600043,0.24768793,1425.3,1425.1,2.59340012]
[1673642600254,0.24768793,1425.3,1425.2,27.79732273]
[1673642600521,0.24768793,1425.3,1425.2,27.82257477]
[1673642600839,0.21756461,1425.4,1425.2,32.39857477]
[1673642601004,0.21756461,1425.4,1425.3,27.80351272]
[1673642601210,0.21756461,1425.4,1425.3,30.82676476]
[1673642601427,4.61e-06,1425.4,1425.3,30.32876476]
[1673642602298,4.61e-06,1425.4,1425.3,27.22243204]
[1673642602461,4.61e-06,1425.4,1425.3,30.85445651]
[1673642603933,4.61e-06,1425.4,1425.3,29.28145651]
[1673642604138,4.61e-06,1425.4,1425.3,26.28145651]
[1673642604400,4.61e-06,1425.4,1425.3,15.65906379]
[1673642604611,4.61e-06,1425.4,1425.3,22.67512379]
[1673642605311,4.61e-06,1425.4,1425.3,15.15906379]
[1673642605530,4.61e-06,1425.4,1425.3,14.08306379]
[1673642605748,4.61e-06,1425.4,1425.3,7.06700379]
[1673642605984,4.61e-06,1425.4,1425.3,0.05094379]
[1673642606184,4.61e-06,1425.4,1425.2,0.02525204]
[1673642606394,8.44420913,1425.4,1425.1,0.11865216]
[1673642606614,1.49433913,1425.4,1425.1,0.09340012]
[1673642606924,1.42833913,1425.4,1425.1,0.09340012]
[1673642607151,8.44402913,1425.4,1425.1,0.09340012]
[1673642607454,0.84440291,1425.3,1425.1,0.09340012]
[1673642607665,1.49433913,1425.4,1425.1,21.14439012]
[1673642607840,4.61e-06,1425.4,1425.1,7.13554216]
[1673642608243,4.61e-06,1425.4,1425.1,0.11865216]
[1673642608451,7.01571461,1425.4,1425.1,0.09340012]
[1673642608804,17.70375733,1425.4,1425.1,0.09340012]
[1673642608999,0.23,1425.3,1425.1,0.09340012]
[1673642609198,2.02337573,1425.3,1425.0,7.01752]
[1673642609397,0.06600461,1425.4,1425.0,21.07785204]
[1673642609607,4.61e-06,1425.4,1425.0,22.65385204]
[1673642609864,4.61e-06,1425.4,1425.1,1.576]
[1673642610184,4.61e-06,1425.4,1425.1,15.60967]
[1673642610389,4.61e-06,1425.4,1425.1,15.63492204]
[1673642611243,4.61e-06,1425.4,1425.1,8.61792204]
[1673642611554,4.61e-06,1425.4,1425.1,0.02525204]
[1673642611864,4.61e-06,1425.4,1425.0,19.24221476]
[1673642612025,4.61e-06,1425.4,1425.0,26.25942476]
[1673642612242,7.01564461,1425.4,1425.0,19.24190476]
[1673642612555,7.08164461,1425.4,1425.0,19.24190476]
[1673642612911,7.08164461,1425.4,1425.0,1.60125204]
[1673642612912,21.11285461,1425.4,1425.0,1.60125204]
[1673642613077,21.11285461,1425.4,1425.0,1.576]
[1673642613875,21.11285461,1425.4,1424.9,7.04551074]
[1673642613876,14.09721461,1425.4,1424.9,7.04551074]
[1673642614040,1.40972146,1425.3,1424.9,7.04545074]
[1673642614236,1.40972146,1425.3,1424.9,0.02525204]
[1673642614237,15.67213146,1425.3,1424.9,0.02525204]
[1673642614595,1.70572146,1425.3,1424.9,7.01795]
[1673642614787,8.42580146,1425.3,1424.9,13.56123204]
[1673642614969,0.84258015,1425.2,1424.9,6.54320204]
[1673642615624,0.84258015,1425.2,1424.9,20.57926204]
[1673642615821,1.40972146,1425.3,1424.9,13.56123204]
[1673642616031,8.42581146,1425.3,1424.9,13.56123204]
[1673642616238,8.49181146,1425.3,1424.9,13.56123204]
[1673642616908,1.47572146,1425.3,1424.9,22.1750929]
[1673642617068,0.002,1425.3,1424.9,22.1730929]
[1673642617276,4.61e-06,1425.4,1424.9,22.1750929]
[1673642617488,7.01566461,1425.4,1424.9,15.1570629]
[1673642617826,25.99732913,1425.4,1424.9,6.5630329]
[1673642618170,25.99732913,1425.4,1424.9,13.5810629]
[1673642618553,25.99732913,1425.4,1424.9,6.5630329]
[1673642618917,1.573,1425.1,1424.9,0.066]
[1673642619218,7.40484,1425.0,1424.5,7.08596]
[1673642619444,7.40484,1425.0,1424.5,14.10596]
[1673642619445,8.17940401,1425.0,1424.5,14.10596]
[1673642619680,0.01983086,1424.9,1424.5,14.10596]
[1673642619994,0.01983086,1424.9,1424.5,16.60596]
[1673642620362,1.16186401,1425.0,1424.5,16.60596]
[1673642620737,0.23,1425.0,1424.6,15.61467]
[1673642621037,32.2312,1425.2,1424.7,2.5]
[1673642621254,0.23,1425.1,1424.7,13.12529272]
[1673642621462,0.066,1425.2,1425.1,7.01705]
[1673642621657,4.61e-06,1425.4,1425.1,8.39719009]
[1673642621874,4.61e-06,1425.4,1425.1,15.41424009]
[1673642622058,4.61e-06,1425.4,1425.1,14.1001]
[1673642623607,4.61e-06,1425.4,1425.3,1.561]
[1673642623722,4.61e-06,1425.4,1425.3,6.72833272]
[1673642623931,4.61e-06,1425.4,1425.3,3.188]
[1673642624194,4.61e-06,1425.4,1425.3,3.122]
[1673642624359,4.61e-06,1425.4,1425.3,7.01606]
[1673642624569,4.61e-06,1425.4,1425.3,7.08206]
[1673642624803,4.61e-06,1425.4,1425.3,6.58206]
[1673642625193,7.01557461,1425.4,1425.3,0.066]
[1673642625447,2.82530609,1425.4,1425.1,0.066]
[1673642625611,2.75930609,1425.4,1425.0,8.65553]
[1673642626295,2.75930609,1425.4,1425.0,15.67307]
[1673642626934,2.75930609,1425.4,1425.0,22.69061]
[1673642627238,2.75930609,1425.4,1425.0,8.65553]
[1673642627429,9.77491609,1425.4,1425.0,8.65554]
[1673642627621,13.44724881,1425.4,1425.0,0.066]
[1673642627862,14.03339,1425.2,1424.8,11.7581]
[1673642628051,1.403339,1425.1,1424.8,0.066]
[1673642628239,1.403339,1425.1,1424.8,7.01851]
[1673642628474,1.403339,1425.1,1424.8,7.08451]
[1673642628657,8.34441911,1425.3,1424.8,14.10303]
[1673642628868,12.68167192,1425.3,1424.8,14.10303]
[1673642629128,19.69804192,1425.3,1424.8,14.10303]
[1673642629343,18.67171183,1425.2,1424.8,0.066]
[1673642629584,18.67171183,1425.2,1424.6,8.0822]
[1673642629585,3.23748282,1425.1,1424.6,8.0822]
[1673642629886,7.01779,1425.0,1424.6,0.066]
[1673642630175,10.69012272,1425.0,1424.5,14.10548]
[1673642630399,0.701779,1424.9,1424.6,7.0194]
[1673642630555,0.701779,1424.9,1424.6,7.0854]
[1673642631286,0.701779,1424.9,1424.6,0.066]
[1673642631505,0.701779,1424.9,1424.5,21.12522]
[1673642633334,14.76592996,1424.9,1424.5,7.08574]
[1673642633505,1.476593,1424.8,1424.5,21.12574]
[1673642633701,0.002,1424.8,1424.5,21.12374]
[1673642633911,0.72974996,1424.9,1424.5,7.08574]
[1673642634178,21.05564,1424.8,1424.5,0.066]
[1673642634485,21.05564,1424.8,1424.4,1.141]
[1673642634486,21.12164,1424.8,1424.4,1.141]
[1673642635320,21.12164,1424.8,1424.3,13.4003]
[1673642635507,2.112164,1424.7,1424.3,13.4003]
[1673642635725,3.60633272,1424.6,1424.3,1.64]
[1673642635979,7.25,1424.5,1424.2,0.09192181]
[1673642636124,7.08405,1424.5,1424.2,0.02792181]
[1673642636342,16.218431,1424.5,1424.2,0.02592181]
[1673642637059,19.82476372,1424.5,1424.2,0.02592181]
[1673642637273,14.27153,1424.4,1424.2,0.02592181]
[1673642637536,14.33753,1424.4,1424.2,0.02592181]
[1673642638364,14.33753,1424.4,1423.8,2.5]
[1673642638700,19.08256572,1424.3,1423.8,2.5]
[1673642638860,19.08256572,1424.3,1423.9,8.51226241]
[1673642638861,1.499753,1424.3,1423.9,8.51226241]
[1673642639075,0.02797096,1424.3,1423.9,14.1114]
[1673642639307,0.02797096,1424.3,1424.0,2.5]
[1673642639500,0.066,1424.4,1424.0,16.54441]
[1673642639721,2.112331,1424.5,1424.0,18.18241]
[1673642640425,9.132421,1424.5,1424.0,18.18241]
[1673642640638,9.198421,1424.5,1424.0,18.18241]
[1673642640877,9.22639196,1424.5,1424.0,18.18241]
[1673642641165,16.24648196,1424.5,1424.0,4.138]
[1673642641413,23.26657196,1424.5,1424.0,4.072]
[1673642641598,2.3266572,1424.4,1424.0,11.09439]
[1673642641809,2.3266572,1424.4,1424.0,8.66039]
[1673642642012,0.02797096,1424.3,1424.0,0.066]
[1673642642244,0.02797096,1424.3,1423.8,17.65735852]
[1673642642245,14.04328,1424.2,1423.8,17.65735852]
[1673642642496,18.7938,1424.6,1424.2,2.72060526]
[1673642642651,3.6426364,1424.6,1424.2,18.33787526]
[1673642642966,7.8472,1424.7,1424.4,1.576]
[1673642643195,7.8472,1424.7,1424.5,7.02]
[1673642643196,0.066,1424.7,1424.5,7.02]
[1673642643474,7.08431,1424.9,1424.5,7.086]
[1673642643803,10.69064272,1424.9,1424.5,7.086]
[1673642644023,1.06906427,1424.8,1424.5,15.682]
[1673642644223,0.066,1425.0,1424.6,8.5954]
[1673642644450,10.62399272,1425.0,1424.6,8.66149]
[1673642644672,3.67233272,1425.0,1424.6,8.66149]
[1673642644849,0.36723327,1424.9,1424.6,8.66149]
[1673642645260,0.36723327,1424.9,1424.6,1.642]
[1673642645483,7.38535327,1424.9,1424.6,1.576]
[1673642645677,7.45135327,1424.9,1424.6,1.576]
[1673642645948,14.10228,1424.9,1424.5,8.652]
[1673642646142,21.12053,1424.9,1424.5,1.632]
[1673642646359,21.12053,1424.9,1424.5,1.566]
[1673642646690,6.13430368,1424.8,1424.3,9.3471]
[1673642646890,0.09397096,1424.8,1424.4,21.06104]
[1673642647045,0.02797096,1424.8,1424.4,21.12704]
[1673642647388,0.02797096,1424.8,1424.5,1.566]
[1673642647610,0.02797096,1424.8,1424.5,11.08576]
[1673642647809,0.02797096,1424.8,1424.5,11.15176]
[1673642648006,7.08357,1425.0,1424.5,25.19176]
[1673642648430,7.08357,1425.0,1424.6,1.561]
[1673642648431,0.066,1425.0,1424.6,1.561]
[1673642648689,49.1506,1425.1,1424.7,1.576]
[1673642648833,18.7806,1425.1,1424.7,15.61359]
[1673642649042,18.7806,1425.1,1424.7,15.67959]
[1673642649402,0.066,1425.1,1424.7,15.67959]
[1673642649559,1.09812911,1425.2,1424.8,4.076]
[1673642649770,9.38863622,1425.3,1424.8,4.076]
[1673642649771,8.11425911,1425.3,1424.9,1.576]
[1673642650013,7.08213,1425.3,1424.9,9.0016]
[1673642650233,7.08213,1425.3,1424.9,9.0676]
[1673642651050,7.08213,1425.3,1424.9,8.66]
[1673642652139,7.08213,1425.3,1424.9,22.69606]
[1673642652140,0.066,1425.3,1424.9,22.69606]
[1673642652310,73.57999468,1425.4,1424.9,22.69606]
[1673642652506,46.8163274,1425.4,1424.9,22.69606]
[1673642652718,52.58573604,1425.4,1424.9,22.69606]
[1673642652930,40.79880332,1425.4,1424.9,15.67803]
[1673642653193,26.76701332,1425.4,1424.9,22.69606]
[1673642653365,26.76701332,1425.4,1425.0,1.573]
[1673642653366,20.99760468,1425.4,1425.0,1.573]
[1673642653560,20.99760468,1425.4,1425.0,15.60776]
[1673642653770,20.99760468,1425.4,1425.0,15.67376]
[1673642654231,1.12610468,1425.4,1425.0,22.6913]
[1673642654425,0.02797557,1425.4,1425.0,22.6913]
[1673642654869,1.06010468,1425.4,1425.0,22.6913]
[1673642655292,0.02797557,1425.4,1425.0,22.6913]
[1673642655815,1.29550835,1425.4,1425.0,22.6913]
[1673642655978,8.07569468,1425.4,1425.0,22.6913]
[1673642656195,8.14169468,1425.4,1425.0,22.6913]
[1673642656436,0.06600461,1425.4,1425.0,22.6913]
[1673642656607,4.61e-06,1425.4,1425.2,21.04965]
[1673642656829,4.61e-06,1425.4,1425.3,1.574]
[1673642657330,4.61e-06,1425.4,1425.3,22.62218]
[1673642657606,4.61e-06,1425.4,1425.3,15.67212]
[1673642657762,4.61e-06,1425.4,1425.3,22.68818]
[1673642658024,4.61e-06,1425.4,1425.3,1.64]
[1673642658215,14.03114461,1425.4,1425.2,1.576]
[1673642658427,21.11271461,1425.4,1425.2,1.576]
[1673642658811,10.02285504,1425.4,1425.0,24.2627]
[1673642659071,24.05399504,1425.4,1425.1,1.573]
[1673642659240,24.05399504,1425.4,1424.9,11.64473]
[1673642659455,24.05399504,1425.4,1424.9,12.25106272]
[1673642660127,24.05399504,1425.4,1424.9,19.26909272]
[1673642660128,10.02285504,1425.4,1424.9,19.26909272]
[1673642660432,7.08157461,1425.4,1424.9,26.28712272]
[1673642660812,0.06600461,1425.4,1424.9,26.28712272]
[1673642661021,4.61e-06,1425.4,1425.1,1.575]
[1673642661303,4.61e-06,1425.4,1425.1,15.60899]
[1673642661605,4.61e-06,1425.4,1425.3,3.136]
[1673642661915,4.61e-06,1425.4,1425.3,17.16812]
[1673642662064,4.61e-06,1425.4,1425.3,8.64206]
[1673642662281,4.61e-06,1425.4,1425.3,1.626]
[1673642662486,7.01557461,1425.4,1425.2,1.642]
[1673642662747,0.06600461,1425.4,1425.2,1.576]
[1673642662908,4.61e-06,1425.4,1425.2,1.576]
[1673642663378,4.61e-06,1425.4,1425.2,8.59251]
[1673642663538,4.61e-06,1425.4,1425.2,8.65851]
[1673642663869,4.61e-06,1425.4,1425.2,1.642]
[1673642664061,4.61e-06,1425.4,1425.2,1.576]
[1673642664282,1.43491213,1425.4,1425.2,1.576]
[1673642664508,4.61e-06,1425.4,1425.2,1.576]
[1673642664743,4.61e-06,1425.4,1425.2,8.5925]
[1673642665055,4.61e-06,1425.4,1425.2,15.67505]
[1673642665425,4.61e-06,1425.4,1425.2,8.6585]
[1673642666280,4.61e-06,1425.4,1425.2,1.642]
[1673642666501,4.61e-06,1425.4,1425.2,1.576]
[1673642666847,15.46604613,1425.4,1425.1,1.642]
[1673642667054,15.53204613,1425.4,1425.0,16.68438]
[1673642667271,22.57559709,1425.4,1425.0,9.6669]
[1673642667895,26.18192981,1425.4,1425.0,0.066]
[1673642668099,26.18192981,1425.4,1424.7,23.05072]
[1673642668100,2.25755971,1425.3,1424.7,21.0165]
[1673642668470,0.23,1425.3,1424.9,14.03598]
[1673642668651,7.01621,1425.3,1424.9,0.066]
[1673642668857,7.01621,1425.3,1424.8,8.59307]
[1673642668858,7.08221,1425.3,1424.8,8.65907]
[1673642669019,0.73619196,1425.2,1424.8,8.65907]